fUSD/lending_fUSD_20260217
["ID","MTS","AMOUNT","RATE_DAILY","PERIOD"]
[405772863,1771293044502,-500.0,0.00015738,2]
[405772864,1771293044511,-150.0,0.00015738,2]
[405772865,1771293044521,-500.0,0.00015738,2]
[405772866,1771293044531,-262.67,0.00015753,2]
[405772867,1771293044540,-500.0,0.00015792,2]
[405772868,1771293044549,-187.36614029,0.00015792,2]
[405772869,1771293044558,-500.0,0.00015792,2]
[405772870,1771293044568,-500.0,0.00015792,2]
[405772871,1771293044577,-500.0,0.00015792,2]
[405772872,1771293044587,-500.0,0.00015792,2]
[405772873,1771293044597,-500.0,0.00015792,2]
[405772874,1771293044606,-596.0,0.00015792,2]
[405772875,1771293044616,-500.0,0.00015792,2]
[405772876,1771293044626,-200.89245722,0.00015792,2]
[405772877,1771293044636,-150.0,0.00015792,2]
[405772878,1771293044645,-500.0,0.00015792,2]
[405772879,1771293044656,-500.0,0.00015792,2]
[405772880,1771293044666,-500.0,0.00015792,2]
[405772881,1771293044675,-178.36591542,0.00015792,2]
[405772882,1771293044684,-500.0,0.00015792,2]
[405772883,1771293044694,-505.10095498,0.00015792,2]
[405772884,1771293044703,-500.0,0.00015792,2]
[405772885,1771293044712,-500.0,0.00015792,2]
[405772886,1771293044721,-500.0,0.00015792,2]
[405772887,1771293044731,-500.0,0.00015792,2]
[405772888,1771293044740,-872.0,0.00015792,2]
[405772889,1771293044749,-4217.0,0.00015792,2]
[405772890,1771293044758,-500.0,0.00015792,2]
[405772891,1771293044768,-150.0,0.00015792,2]
[405772892,1771293044778,-500.0,0.00015792,2]
[405772893,1771293044788,-24724.75883189,0.0001581,2]
[405772894,1771293044798,-500.0,0.00015847,2]
[405772895,1771293044807,-500.0,0.00015847,2]
[405772896,1771293044817,-500.0,0.00015847,2]
[405772897,1771293044826,-500.0,0.00015847,2]
[405772898,1771293044836,-500.0,0.00015847,2]
[405772899,1771293044845,-500.0,0.00015847,2]
[405772900,1771293044854,-596.0,0.00015847,2]
[405772901,1771293044865,-500.0,0.00015847,2]
[405772902,1771293044874,-201.09695119,0.00015847,2]
[405772903,1771293044883,-500.0,0.00015847,2]
[405772904,1771293044893,-500.0,0.00015847,2]
[405772905,1771293044902,-329.95129651,0.00015847,2]
[405772906,1771293044912,-510.76125773,0.00015847,2]
[405772907,1771293044921,-500.0,0.00015847,2]
[405772908,1771293044931,-500.0,0.00015847,2]
[405772909,1771293044940,-500.0,0.00015847,2]
[405772910,1771293044949,-500.0,0.00015847,2]
[405772911,1771293044958,-872.0,0.00015847,2]
[405772912,1771293044967,-4217.0,0.00015847,2]
[405772913,1771293044976,-500.0,0.00015847,2]
[405772914,1771293044986,-250.53819001,0.00015847,2]
[405772915,1771293044995,-500.0,0.00015847,2]
[405772916,1771293045005,-500.0,0.00015902,2]
[405772917,1771293045014,-500.0,0.00015902,2]
[405772918,1771293045024,-500.0,0.00015902,2]
[405772919,1771293045033,-500.0,0.00015902,2]
[405772920,1771293045043,-500.0,0.00015902,2]
[405772921,1771293045053,-500.0,0.00015902,2]
[405772922,1771293045063,-596.0,0.00015902,2]
[405772923,1771293045075,-500.0,0.00015902,2]
[405772924,1771293045084,-500.33776257,0.00015902,2]
[405772925,1771293045094,-500.0,0.00015902,2]
[405772926,1771293045103,-500.0,0.00015902,2]
[405772927,1771293045112,-500.0,0.00015902,2]
[405772928,1771293045121,-500.0,0.00015902,2]
[405772929,1771293045130,-500.0,0.00015902,2]
[405772930,1771293045139,-872.0,0.00015902,2]
[405772931,1771293045148,-4217.0,0.00015902,2]
[405772932,1771293045158,-500.0,0.00015902,2]
[405772933,1771293045167,-153.2248447,0.00015902,2]
[405772934,1771293045176,-239.55,0.00015907,2]
[405772935,1771293045186,-500.0,0.00015957,2]
[405772936,1771293045195,-500.0,0.00015957,2]
[405772937,1771293045205,-500.0,0.00015957,2]
[405772938,1771293045214,-500.0,0.00015957,2]
[405772939,1771293045224,-500.0,0.00015957,2]
[405772940,1771293045233,-596.0,0.00015957,2]
[405772941,1771293045242,-500.0,0.00015957,2]
[405772942,1771293045252,-630.25617345,0.00015957,2]
[405772943,1771293045261,-382.17209928,0.00015957,2]
[405772944,1771293045270,-500.0,0.00015957,2]
[405772945,1771293045280,-500.0,0.00015957,2]
[405772946,1771293045289,-621.12228144,0.00015957,2]
[405772947,1771293045299,-475.49905426,0.00015957,2]
[405772948,1771293045308,-872.0,0.00015957,2]
[405772949,1771293045317,-4217.0,0.00015957,2]
[405772950,1771293045327,-500.0,0.00015957,2]
[405772951,1771293045336,-5000.0,0.0001596,2]
[405772952,1771293045345,-484.11558281,0.00015986,2]
[405772953,1771293045355,-303.26122484,0.00016,2]
[405772954,1771293045364,-500.0,0.00016012,2]
[405772955,1771293045374,-500.0,0.00016012,2]
[405772956,1771293045383,-500.0,0.00016012,2]
[405772957,1771293045473,-500.0,0.00016012,2]
[405772958,1771293045482,-500.0,0.00016012,2]
[405772959,1771293045491,-596.0,0.00016012,2]
[405772960,1771293045500,-500.0,0.00016012,2]
[405772961,1771293045509,-500.0,0.00016012,2]
[405772962,1771293045518,-500.0,0.00016012,2]
[405772963,1771293045527,-872.0,0.00016012,2]
[405772964,1771293045536,-4217.0,0.00016012,2]
[405772965,1771293045546,-500.0,0.00016012,2]
[405772966,1771293045555,-500.0,0.00016066,2]
[405772967,1771293045563,-500.0,0.00016066,2]
[405772968,1771293045572,-500.0,0.00016066,2]
[405772969,1771293045582,-500.0,0.00016066,2]
[405772970,1771293045591,-500.0,0.00016066,2]
[405772971,1771293045600,-596.0,0.00016066,2]
[405772972,1771293045609,-500.0,0.00016066,2]
[405772973,1771293045619,-500.0,0.00016066,2]
[405772974,1771293045628,-500.0,0.00016066,2]
[405772975,1771293045637,-872.0,0.00016066,2]
[405772976,1771293045646,-4217.0,0.00016066,2]
[405772977,1771293045655,-500.0,0.00016066,2]
[405772978,1771293045664,-9999.99,0.00016116,2]
[405772979,1771293045673,-1401.0,0.00016116,2]
[405772980,1771293045682,-313.7,0.00016121,2]
[405772981,1771293045692,-155.81655615,0.00016121,2]
[405772982,1771293045702,-153.57378643,0.00016121,2]
[405772983,1771293045711,-500.0,0.00016121,2]
[405772984,1771293045720,-500.0,0.00016121,2]
[405772985,1771293045729,-500.0,0.00016121,2]
[405772986,1771293045738,-596.0,0.00016121,2]
[405772987,1771293045746,-500.0,0.00016121,2]
[405772988,1771293045755,-500.0,0.00016121,2]
[405772989,1771293045764,-500.0,0.00016121,2]
[405772990,1771293045773,-872.0,0.00016121,2]
[405772991,1771293045787,-4217.0,0.00016121,2]
[405772992,1771293045796,-500.0,0.00016121,2]
[405772993,1771293045806,-500.0,0.00016176,2]
[405772994,1771293045814,-500.0,0.00016176,2]
[405772995,1771293045825,-500.0,0.00016176,2]
[405772996,1771293045835,-596.0,0.00016176,2]
[405772997,1771293045846,-500.0,0.00016176,2]
[405772998,1771293045855,-500.0,0.00016176,2]
[405772999,1771293045864,-500.0,0.00016176,2]
[405773000,1771293045873,-872.0,0.00016176,2]
[405773001,1771293045882,-4217.0,0.00016176,2]
[405773002,1771293045891,-500.0,0.00016176,2]
[405773003,1771293045899,-361.9355564,0.00016231,2]
[405773004,1771293045909,-500.0,0.00016231,2]
[405773005,1771293045917,-500.0,0.00016231,2]
[405773006,1771293045926,-596.0,0.00016231,2]
[405773007,1771293045935,-500.0,0.00016231,2]
[405773008,1771293045944,-500.0,0.00016231,2]
[405773009,1771293045953,-500.0,0.00016231,2]
[405773010,1771293045963,-872.0,0.00016231,2]
[405773011,1771293045972,-4217.0,0.00016231,2]
[405773012,1771293045981,-500.0,0.00016231,2]
[405773013,1771293045990,-513.225312,0.00016241,7]
[405773014,1771293045999,-1587.034239,0.00016273,7]
[405773015,1771293046008,-500.0,0.00016286,2]
[405773016,1771293046018,-224.65460803,0.00016286,2]
[405773017,1771293046027,-596.0,0.00016286,2]
[405773018,1771293046037,-500.0,0.00016286,2]
[405773019,1771293046046,-500.0,0.00016286,2]
[405773020,1771293046055,-500.0,0.00016286,2]
[405773021,1771293046065,-872.0,0.00016286,2]
[405773022,1771293046073,-4217.0,0.00016286,2]
[405773023,1771293046082,-500.0,0.00016286,2]
[405773024,1771293046092,-498.26652801,0.0001634,2]
[405773025,1771293046102,-596.0,0.0001634,2]
[405773026,1771293046111,-500.0,0.0001634,2]
[405773027,1771293046120,-500.0,0.0001634,2]
[405773028,1771293046129,-292.49812506,0.0001634,2]
[405773029,1771293046138,-872.0,0.0001634,2]
[405773030,1771293046147,-4217.0,0.0001634,2]
[405773031,1771293046157,-500.0,0.0001634,2]
[405773032,1771293046166,-484.11558281,0.00016385,2]
[405773033,1771293046175,-596.0,0.00016395,2]
[405773034,1771293046185,-611.76249723,0.00016395,2]
[405773035,1771293046194,-500.0,0.00016395,2]
[405773036,1771293046203,-872.0,0.00016395,2]
[405773037,1771293046217,-4217.0,0.00016395,2]
[405773038,1771293046226,-500.0,0.00016395,2]
[405773039,1771293046235,-262.67,0.00016438,2]
[405773040,1771293046245,-596.0,0.0001645,2]
[405773041,1771293046254,-500.0,0.0001645,2]
[405773042,1771293046264,-872.0,0.0001645,2]
[405773043,1771293046275,-4217.0,0.0001645,2]
[405773044,1771293046285,-500.0,0.0001645,2]
[405773045,1771293046295,-12120.678806,0.00016465,7]
[405773046,1771293046305,-596.0,0.00016505,2]
[405773047,1771293046315,-500.0,0.00016505,2]
[405773049,1771293046324,-872.0,0.00016505,2]
[405773051,1771293046333,-4217.0,0.00016505,2]
[405773053,1771293046342,-500.0,0.00016505,2]
[405773055,1771293046351,-160.0,0.00016517,2]
[405773057,1771293046360,-173.53171403,0.00016517,2]
[405773059,1771293046369,-4057.976803,0.00016528,7]
[405773061,1771293046378,-4636.53456564,0.00016552,2]
[405773063,1771293046387,-596.0,0.0001656,2]
[405773064,1771293046396,-500.0,0.0001656,2]
[405773066,1771293046406,-872.0,0.0001656,2]
[405773068,1771293046415,-4217.0,0.0001656,2]
[405773069,1771293046424,-500.0,0.0001656,2]
[405773070,1771293046433,-500.0,0.00016592,2]
[405773071,1771293046442,-596.0,0.00016614,2]
[405773072,1771293046451,-500.0,0.00016614,2]
[405773073,1771293046461,-872.0,0.00016614,2]
[405773074,1771293046471,-4217.0,0.00016614,2]
[405773075,1771293046480,-481.0942881,0.00016614,2]
[405773076,1771293046489,-596.0,0.00016669,2]
[405773077,1771293046498,-500.0,0.00016669,2]
[405773078,1771293046507,-872.0,0.00016669,2]
[405773079,1771293046516,-4217.0,0.00016669,2]
[405773080,1771293046525,-596.0,0.00016724,2]
[405773081,1771293046535,-500.0,0.00016724,2]
[405773082,1771293046555,-872.0,0.00016724,2]
[405773083,1771293046574,-4217.0,0.00016724,2]
[405773084,1771293046594,-596.0,0.00016779,2]
[405773085,1771293046613,-500.0,0.00016779,2]
[405773086,1771293046622,-872.0,0.00016779,2]
[405773087,1771293046631,-4217.0,0.00016779,2]
[405773088,1771293046641,-596.0,0.00016833,2]
[405773089,1771293046649,-500.0,0.00016833,2]
[405773090,1771293046659,-872.0,0.00016833,2]
[405773091,1771293046668,-4217.0,0.00016833,2]
[405773092,1771293046677,-24724.75883189,0.00016855,2]
[405773093,1771293046687,-600.2655769,0.00016888,2]
[405773094,1771293046696,-512.26030593,0.00016888,2]
[405773095,1771293046705,-887.15179644,0.00016888,2]
[405773096,1771293046714,-4236.73449089,0.00016888,2]
[405773097,1771293046723,-500.0,0.00016998,2]
[405773098,1771293046732,-150.0,0.00016998,2]
[405773099,1771293046741,-500.0,0.00016999,2]
[405773100,1771293046749,-500.0,0.00016999,2]
[405773101,1771293046759,-500.0,0.00016999,2]
[405773102,1771293046768,-538.27974596,0.00016999,2]
[405773103,1771293046779,-679.08,0.00016999,2]
[405773104,1771293046789,-679.08,0.00016999,2]
[405773105,1771293046798,-679.08,0.00016999,2]
[405773106,1771293046807,-500.0,0.00016999,2]
[405773107,1771293046817,-500.0,0.00016999,2]
[405773108,1771293046826,-500.0,0.00016999,2]
[405773109,1771293046835,-388.47570654,0.00016999,2]
[405773110,1771293046845,-500.0,0.00016999,2]
[405773111,1771293046854,-500.0,0.00016999,2]
[405773113,1771293046866,-500.0,0.00016999,2]
[405773114,1771293046876,-1125.16,0.00016999,2]
[405773115,1771293046885,-1125.16,0.00016999,2]
[405773116,1771293046893,-1125.16,0.00016999,2]
[405773117,1771293046903,-300.0,0.00017,2]
[405773118,1771293046913,-500.0,0.00017053,2]
[405773119,1771293046922,-150.0,0.00017053,2]
[405773120,1771293046931,-500.0,0.00017108,2]
[405773121,1771293046940,-242.84628954,0.00017108,2]
[405773122,1771293046950,-3452.0,0.00017145,2]
[405773123,1771293046959,-679.08,0.00017161,2]
[405773124,1771293046968,-500.0,0.00017161,2]
[405773125,1771293046977,-1125.16,0.00017161,2]
[405773126,1771293046986,-500.0,0.00017162,2]
[405773127,1771293046995,-500.0,0.00017217,2]
[405773128,1771293047005,-500.0,0.00017272,2]
[405773129,1771293047014,-502.0,0.000173,2]
[405773130,1771293047023,-500.0,0.00017327,2]
[405773131,1771293047032,-500.0,0.00017382,2]
[405773133,1771293047041,-500.0,0.00017436,2]
[405773134,1771293047050,-500.0,0.00017491,2]
[405773135,1771293047058,-500.0,0.00017546,2]
[405773136,1771293047069,-163.51122534,0.00017601,2]
[405773137,1771293047078,-1132.67529093,0.0001764,2]
[405773138,1771293047088,-1048.26522458,0.0001764,2]
[405773139,1771293047097,-1092.33195805,0.0001764,2]
[405773140,1771293047106,-1017.58582236,0.0001764,2]
[405773141,1771293047115,-1034.91674537,0.0001764,2]
[405773142,1771293047125,-1075.73817383,0.0001764,2]
[405773143,1771293047134,-1125.99371064,0.0001764,2]
[405773144,1771293047143,-1122.58887546,0.0001764,2]
[405773146,1771293047153,-1043.43101519,0.0001764,2]
[405773147,1771293047163,-1148.5085014,0.0001764,2]
[405773148,1771293047173,-1031.48424431,0.0001764,2]
[405773149,1771293047182,-1144.36709943,0.0001764,2]
[405773150,1771293047191,-1119.37444226,0.0001764,2]
[405773151,1771293047200,-1059.11873721,0.0001764,2]
[405773152,1771293047210,-1157.03222,0.0001764,2]
[405773153,1771293047219,-160.57318335,0.00017727,2]
[405773154,1771293047229,-444.64,0.00017808,2]
[405773155,1771293047238,-500.0,0.00017808,2]
[405773156,1771293047249,-500.0,0.00017808,2]
[405773157,1771293047258,-500.0,0.00017808,2]
[405773159,1771293047267,-500.0,0.00017808,2]
[405773160,1771293047276,-500.0,0.00017808,2]
[405773161,1771293047286,-595.71508911,0.00017808,2]
[405773162,1771293047296,-500.0,0.00017808,2]
[405773163,1771293047306,-500.0,0.00017808,2]
[405773164,1771293047315,-500.0,0.00017808,2]
[405773165,1771293047324,-250.0,0.00017808,20]
[405773166,1771293047334,-250.0,0.00017808,20]
[405773167,1771293047343,-250.0,0.00017808,20]
[405773168,1771293047352,-250.0,0.00017808,20]
[405773169,1771293047361,-250.0,0.00017808,20]
[405773170,1771293047370,-250.0,0.00017808,20]
[405773171,1771293047390,-250.0,0.00017808,20]
[405773172,1771293047400,-250.0,0.00017808,20]
[405773173,1771293047409,-250.0,0.00017808,20]
[405773174,1771293047418,-250.0,0.00017808,20]
[405773175,1771293047427,-250.0,0.00017808,20]
[405773176,1771293047436,-250.0,0.00017808,20]
[405773177,1771293047445,-250.0,0.00017808,20]
[405773178,1771293047455,-250.0,0.00017808,20]
[405773179,1771293047465,-250.0,0.00017808,20]
[405773180,1771293047475,-211.316222,0.00017808,20]
[405773181,1771293047484,-800.0,0.00017808,2]
[405773182,1771293047493,-25000.0,0.000179,3]
[405773183,1771293047502,-160.0,0.000179,3]
[405773184,1771293047512,-1295.70769334,0.000179,2]
[405773185,1771293047521,-4636.53456564,0.000179,2]
[405773186,1771293047530,-43800.93366516,0.000179,2]
[405773187,1771293047539,-6684.80210935,0.000179,2]
[405773188,1771293047548,-15989.9912249,0.000179,2]
[405773189,1771293047558,-24724.75883189,0.000179,2]
[405773190,1771293047567,-1266.86668515,0.000179,3]
[405773191,1771293047576,-500.0,0.00017918,2]
[405773192,1771293047585,-500.0,0.00017918,2]
[405773193,1771293047595,-500.0,0.00017918,2]
[405773194,1771293047604,-500.0,0.00017918,2]
[405773195,1771293047613,-312.0,0.00017918,2]
[405773196,1771293047623,-240373.897665,0.00017982,2]
[405773197,1771293047632,-763.92788936,0.0001799,2]
[405773198,1771293047641,-763.92788936,0.0001799,2]
[405773199,1771293047650,-151.0,0.00017996,2]
[405773200,1771293047660,-151.0,0.00017997,2]
[405773201,1771293047669,-679.08,0.00017999,2]
[405773202,1771293047679,-679.08,0.00017999,2]
[405773203,1771293047688,-679.08,0.00017999,2]
[405773204,1771293047697,-679.08,0.00017999,2]
[405773205,1771293047706,-679.08,0.00017999,2]
[405773206,1771293047715,-679.08,0.00017999,2]
[405773207,1771293047724,-679.22619195,0.00017999,2]
[405773208,1771293047733,-500.0,0.00017999,2]
[405773209,1771293047742,-505.24249427,0.00017999,2]
[405773210,1771293047751,-1125.16,0.00017999,2]
[405773211,1771293047760,-1125.16,0.00017999,2]
[405773212,1771293047770,-1125.16,0.00017999,2]
[405773213,1771293047780,-1125.16,0.00017999,2]
[405773214,1771293047793,-1125.16,0.00017999,2]
[405773215,1771293047802,-1125.16,0.00017999,2]
[405773216,1771293047811,-1125.29508189,0.00017999,2]
[405773217,1771293047820,-300.0,0.00017999,2]
[405773218,1771293047830,-666.0,0.00017999,2]
[405773219,1771293047839,-300.0,0.00017999,2]
[405773220,1771293047849,-666.0,0.00017999,2]
[405773221,1771293047860,-300.0,0.00017999,2]
[405773222,1771293047871,-23598.10797836,0.00017999,2]
[405773223,1771293047880,-7381523.52701562,0.00018,2]
[405773224,1771293047889,-7513.62685196,0.00018,2]
[405773225,1771293047898,-70269.61185582,0.00018,2]
[405773226,1771293047907,-3958985.47922073,0.00018,2]
[405773227,1771293048471,-476.9799995,0.00018,2]
[405773228,1771293048589,-5218547.20349228,0.00018,2]
[405773229,1771293048599,-4787.01237859,0.00018,2]
[405773230,1771293048609,-488.07724997,0.00018,2]
[405773231,1771293048619,-200.0,0.00018,2]
[405773232,1771293048628,-500.0,0.00018,2]
[405773233,1771293048638,-500.0,0.00018,2]
[405773234,1771293048647,-387.0,0.00018,2]
[405773235,1771293048656,-521.581,0.00018,2]
[405773236,1771293048666,-6121.659,0.00018,2]
[405773237,1771293048675,-200.0,0.00018,2]
[405773238,1771293048684,-772.26,0.00018,7]
[405773239,1771293048694,-151.0,0.00018,2]
[405773240,1771293048704,-151.0,0.00018,2]
[405773241,1771293048713,-157.404271,0.00018,2]
[405773242,1771293048722,-157.404271,0.00018,2]
[405773243,1771293048732,-157.404271,0.00018,2]
[405773244,1771293048741,-157.404271,0.00018,2]
[405773245,1771293048751,-286.60803,0.00018,2]
[405773246,1771293048760,-286.60803,0.00018,2]
[405773247,1771293048770,-286.60803,0.00018,2]
[405773248,1771293048781,-286.60803,0.00018,2]
[405773249,1771293048791,-502.0,0.00018013,2]
[405773250,1771293048801,-252.0,0.00018054,2]
[405773251,1771293048810,-550.0,0.00018055,2]
[405773252,1771293048820,-503.0,0.00018055,2]
[405773253,1771293048831,-504.0,0.00018082,2]
[405773254,1771293048840,-500.0,0.00018082,2]
[405773255,1771293048850,-424.0,0.00018082,2]
[405773256,1771293048859,-151.0,0.00018136,2]
[405773257,1771293048869,-330.0,0.00018137,2]
[405773258,1771293048879,-302.0,0.00018137,2]
[405773259,1771293048889,-200.0,0.0001818,2]
[405773260,1771293048898,-220.0,0.00018219,2]
[405773261,1771293048907,-201.0,0.00018219,2]
[405773262,1771293048917,-300.0,0.00018355,2]
[405773263,1771293048928,-502.75243677,0.00018355,2]
[405773264,1771293048937,-300.0,0.00018355,2]
[405773265,1771293048947,-83953.39,0.00018356,2]
[405773266,1771293048957,-168.0,0.00018456,2]
[405773267,1771293048968,-550.98049433,0.00018666,7]
[405773268,1771293048979,-502.0,0.00018725,3]
[405773269,1771293048990,-803.57150331,0.00018904,2]
[405773270,1771293048999,-4030.8275389,0.00019,2]
[405773271,1771293049008,-378.71874303,0.00019,2]
[405773272,1771293049021,-350.0,0.00019,2]
[405773273,1771293049031,-1600.0,0.00019092,2]
[405773274,1771293049041,-5016.72175524,0.00019152,2]
[405773275,1771293049051,-151.0,0.00019178,2]
[405773276,1771293049060,-235.93633334,0.00019178,2]
[405773277,1771293049070,-492.668276,0.00019178,2]
[405773278,1771293049079,-492.668276,0.00019178,2]
[405773279,1771293049089,-492.668276,0.00019178,2]
[405773280,1771293049099,-492.668276,0.00019178,2]
[405773281,1771293049109,-151.0,0.00019233,2]
[405773282,1771293049119,-151.0,0.00019288,2]
[405773283,1771293049128,-151.0,0.00019343,2]
[405773284,1771293049137,-151.0,0.00019398,2]
[405773285,1771293049147,-502.0,0.00019438,3]
[405773286,1771293049156,-151.0,0.00019453,2]
[405773287,1771293049166,-151.0,0.00019508,2]
[405773288,1771293049175,-151.0,0.00019563,2]
[405773289,1771293049184,-151.0,0.00019618,2]
[405773290,1771293049193,-28698.0,0.00019639,2]
[405773291,1771293049203,-151.0,0.00019673,2]
[405773292,1771293049215,-151.0,0.00019728,2]
[405773293,1771293049224,-151.0,0.00019783,2]
[405773294,1771293049234,-151.0,0.00019838,2]
[405773295,1771293049243,-151.0,0.00019893,2]
[405773296,1771293049252,-160.57318335,0.00019943,2]
[405773297,1771293049262,-267.05598539,0.00019948,2]
[405773298,1771293049272,-300.0,0.00019999,2]
[405773299,1771293049281,-666.0,0.00019999,2]
[405773300,1771293049291,-360.38217355,0.0002,30]
[405773301,1771293049300,-62281.15880025,0.0002,30]
[405773302,1771293049310,-16076.51567268,0.0002,2]
[405773303,1771293049319,-2464.68,0.0002,2]
[405773304,1771293049328,-3950.0,0.0002,2]
[405773305,1771293049337,-22542.82519272,0.0002,14]
[405773306,1771293049347,-1297.52890916,0.0002,2]
[405773307,1771293049356,-1000.0,0.0002,7]
[405773308,1771293049366,-260.02819865,0.0002,30]
[405773309,1771293049377,-2870.24543888,0.0002,2]
[405773310,1771293049390,-12953.88547041,0.0002,2]
[405773311,1771293049399,-154.68408518,0.0002,2]
[405773312,1771293049409,-360.45457926,0.0002,30]
[405773313,1771293049419,-160.0,0.0002,30]
[405773314,1771293049428,-8720.0,0.0002001,2]
[405773315,1771293049438,-502.0,0.0002015,4]
[405773316,1771293049447,-20150.17,0.00020299,14]
[405773317,1771293049457,-200.0,0.000203,2]
[405773318,1771293049467,-1000.30511472,0.00020333,2]
[405773319,1771293049476,-1011.0534737,0.00020333,2]
[405773320,1771293049486,-1097.11707265,0.00020333,2]
[405773321,1771293049495,-1117.08138714,0.00020333,2]
[405773322,1771293049505,-1056.66650883,0.00020333,2]
[405773323,1771293049515,-1633.80524025,0.0002041,30]
[405773324,1771293049524,-235.20041031,0.00020484,2]
[405773325,1771293049533,-155.48,0.00020548,2]
[405773326,1771293049543,-160.0,0.000206,30]
[405773327,1771293049552,-22718.4885404,0.000207,2]
[405773328,1771293049561,-250.0,0.00020818,35]
[405773329,1771293049877,-250.0,0.00020818,35]
[405773330,1771293049887,-250.0,0.00020818,35]
[405773331,1771293049896,-250.0,0.00020818,35]
[405773332,1771293049905,-250.0,0.00020818,35]
[405773333,1771293049915,-250.0,0.00020818,35]
[405773334,1771293049924,-173.0,0.00020818,35]
[405773335,1771293049933,-250.0,0.00020818,35]
[405773336,1771293049943,-250.0,0.00020818,35]
[405773337,1771293049951,-250.0,0.00020818,35]
[405773338,1771293049960,-250.0,0.00020818,35]
[405773339,1771293049969,-250.0,0.00020818,35]
[405773340,1771293049978,-291.0,0.00020818,35]
[405773341,1771293049987,-1600.0,0.00020827,2]
[405773342,1771293049996,-502.0,0.00020862,5]
[405773343,1771293050005,-300.0,0.00020899,2]
[405773344,1771293050014,-666.0,0.00020899,2]
[405773345,1771293050023,-300.0,0.00020899,2]
[405773346,1771293050032,-393915.10711788,0.000209,30]
[405773347,1771293050040,-250.0,0.000209,35]
[405773348,1771293050049,-250.0,0.000209,35]
[405773349,1771293050058,-250.0,0.000209,35]
[405773350,1771293050067,-254.0,0.000209,35]
[405773351,1771293050076,-250.0,0.000209,35]
[405773352,1771293050085,-250.0,0.000209,35]
[405773353,1771293050094,-250.0,0.000209,35]
[405773354,1771293050103,-174.0,0.000209,35]
[405773355,1771293050112,-250.0,0.00020982,35]
[405773356,1771293050121,-250.0,0.00020982,35]
[405773357,1771293050130,-169.0,0.00020982,35]
[405773358,1771293050139,-250.0,0.00020982,35]
[405773359,1771293050148,-366.0,0.00020982,35]
[405773360,1771293050157,-300.0,0.00020999,2]
[405773361,1771293050166,-300.0,0.00020999,2]
[405773362,1771293050176,-3000.0,0.00021,2]
[405773363,1771293050186,-20000.0,0.00021,2]
[405773364,1771293050195,-40000.0,0.00021,2]
[405773365,1771293050204,-1196.78662175,0.00021,2]
[405773366,1771293050213,-197.53958257,0.00021,2]
[405773367,1771293050222,-78122.12170795,0.00021,2]
[405773368,1771293050231,-373.67913322,0.00021,5]
[405773369,1771293050240,-400.0,0.00021,2]
[405773370,1771293050249,-316.65250639,0.00021499,2]
[405773371,1771293050258,-57713.97773313,0.000215,2]
[405773372,1771293050268,-502.0,0.00021575,5]
[405773373,1771293050277,-63732.0,0.000217,2]
[405773374,1771293050286,-3240.0,0.00021715,2]
[405773375,1771293050295,-53634.6662814,0.00021852,2]
[405773376,1771293050304,-643.97,0.000219,2]